[Event "*** Titled Tuesday Blitz"]
[Site "Chess.com"]
[Date "2019.06.04"]
[Round "1"]
[White "PawnEatingZombie"]
[Black "Astaneh"]
[Result "0-1"]
[WhiteElo "2159"]
[BlackElo "2562"]
[TimeControl "180+2"]
[EndTime "13:10:08 PDT"]
[Termination "Astaneh won on time"]

1. d4 {[%clk 0:02:59.9]} 1... Nf6 {[%clk 0:02:55.2]} 2. c4 {[%clk 0:03:00.9]}
2... e6 {[%clk 0:02:56.1]} 3. Nc3 {[%clk 0:03:01.9]} 3... Bb4 {[%clk 0:02:56.1]}
4. Qc2 {[%clk 0:03:03.3]} 4... O-O {[%clk 0:02:53.6]} 5. e4 {[%clk 0:03:03.9]}
5... d5 {[%clk 0:02:50.6]} 6. e5 {[%clk 0:03:04.5]} 6... Ne4 {[%clk 0:02:51.9]}
7. Bd3 {[%clk 0:03:05]} 7... c5 {[%clk 0:02:52.3]} 8. Nf3 {[%clk 0:03:04.5]}
8... cxd4 {[%clk 0:02:28.9]} 9. Nxd4 {[%clk 0:03:06.4]} 9... f6 {[%clk
0:02:29.3]} 10. Bxe4 {[%clk 0:02:49.1]} 10... dxe4 {[%clk 0:02:30.3]} 11. Qxe4
{[%clk 0:02:47.6]} 11... Qa5 {[%clk 0:01:58.3]} 12. O-O {[%clk 0:02:38.9]} 12...
Qxe5 {[%clk 0:01:55.2]} 13. Qxe5 {[%clk 0:02:34.8]} 13... fxe5 {[%clk
0:01:57.1]} 14. Ndb5 {[%clk 0:02:35.6]} 14... Nc6 {[%clk 0:01:54.2]} 15. a3
{[%clk 0:02:31.9]} 15... Bc5 {[%clk 0:01:53.9]} 16. Be3 {[%clk 0:02:25.5]} 16...
Nd4 {[%clk 0:01:23.2]} 17. Ne4 {[%clk 0:02:18.2]} 17... Bb6 {[%clk 0:01:08.6]}
18. c5 {[%clk 0:02:04.8]} 18... Nxb5 {[%clk 0:01:08.4]} 19. cxb6 {[%clk
0:02:05.1]} 19... axb6 {[%clk 0:01:08.6]} 20. Bxb6 {[%clk 0:02:02.5]} 20... Bd7
{[%clk 0:01:01.7]} 21. Rfd1 {[%clk 0:01:40.6]} 21... Bc6 {[%clk 0:01:02.4]} 22.
f3 {[%clk 0:01:35.3]} 22... h6 {[%clk 0:00:36]} 23. a4 {[%clk 0:01:27.9]} 23...
Na7 {[%clk 0:00:36.8]} 24. Bc7 {[%clk 0:01:23.9]} 24... Bxe4 {[%clk 0:00:34.5]}
25. fxe4 {[%clk 0:01:25.8]} 25... Nc6 {[%clk 0:00:35.9]} 26. Bd6 {[%clk
0:01:22.8]} 26... Rf4 {[%clk 0:00:34.7]} 27. b4 {[%clk 0:00:48.7]} 27... Rxe4
{[%clk 0:00:33.5]} 28. b5 {[%clk 0:00:50.1]} 28... Nd4 {[%clk 0:00:32.1]} 29.
Re1 {[%clk 0:00:30.3]} 29... Ne2+ {[%clk 0:00:23.1]} 30. Kf2 {[%clk 0:00:30.5]}
30... Nc3 {[%clk 0:00:23.5]} 31. Bxe5 {[%clk 0:00:25.9]} 31... Rf8+ {[%clk
0:00:16.4]} 32. Kg1 {[%clk 0:00:27]} 32... Ne2+ {[%clk 0:00:15.6]} 33. Rxe2
{[%clk 0:00:24.9]} 33... Rxe2 {[%clk 0:00:17.5]} 34. Bg3 {[%clk 0:00:23.7]}
34... Ra8 {[%clk 0:00:17.2]} 35. a5 {[%clk 0:00:24.7]} 35... Rb2 {[%clk
0:00:18.2]} 36. a6 {[%clk 0:00:18.8]} 36... Rxb5 {[%clk 0:00:15.3]} 37. a7
{[%clk 0:00:18.9]} 37... b6 {[%clk 0:00:15.4]} 38. Bb8 {[%clk 0:00:19.8]} 38...
Ra5 {[%clk 0:00:16.4]} 39. Rb1 {[%clk 0:00:20.6]} 39... b5 {[%clk 0:00:17.5]}
40. Kf2 {[%clk 0:00:20.8]} 40... Kf7 {[%clk 0:00:17.1]} 41. Ke3 {[%clk
0:00:21.9]} 41... Ke7 {[%clk 0:00:18.6]} 42. h4 {[%clk 0:00:23]} 42... Kd7
{[%clk 0:00:19.8]} 43. g3 {[%clk 0:00:23.1]} 43... Kc6 {[%clk 0:00:21.1]} 44.
Kf4 {[%clk 0:00:23.9]} 44... Kb6 {[%clk 0:00:20]} 45. Ke5 {[%clk 0:00:23.7]}
45... R8xa7 {[%clk 0:00:21.6]} 46. Bxa7+ {[%clk 0:00:24.4]} 46... Rxa7 {[%clk
0:00:23.5]} 47. Kxe6 {[%clk 0:00:25.8]} 47... Ra3 {[%clk 0:00:25]} 48. g4 {[%clk
0:00:25.8]} 48... Rg3 {[%clk 0:00:24.4]} 49. Kf5 {[%clk 0:00:26]} 49... Kc5
{[%clk 0:00:25.8]} 50. g5 {[%clk 0:00:17.2]} 50... hxg5 {[%clk 0:00:24.6]} 51.
hxg5 {[%clk 0:00:18.8]} 51... Ra3 {[%clk 0:00:17.6]} 52. Re1 {[%clk 0:00:18.7]}
52... Ra7 {[%clk 0:00:16.9]} 53. Re8 {[%clk 0:00:17.4]} 53... b4 {[%clk
0:00:17.8]} 54. Rb8 {[%clk 0:00:16.6]} 54... Kc4 {[%clk 0:00:18.6]} 55. g6
{[%clk 0:00:17.6]} 55... b3 {[%clk 0:00:19.1]} 56. Ke4 {[%clk 0:00:12.4]} 56...
Re7+ {[%clk 0:00:18.3]} 57. Kf5 {[%clk 0:00:06.9]} 57... Kc3 {[%clk 0:00:20.2]}
58. Rf8 {[%clk 0:00:05.4]} 58... Rb7 {[%clk 0:00:19.1]} 59. Rf7 {[%clk
0:00:06.6]} 59... Rb5+ {[%clk 0:00:20.5]} 60. Ke4 {[%clk 0:00:06.5]} 60... b2
{[%clk 0:00:22.4]} 0-1

[Event "*** Titled Tuesday Blitz"]
[Site "Chess.com"]
[Date "2019.06.04"]
[Round "1"]
[White "ozates"]
[Black "MarianPetrov"]
[Result "0-1"]
[WhiteElo "2234"]
[BlackElo "2602"]
[TimeControl "180+2"]
[EndTime "13:10:16 PDT"]
[Termination "MarianPetrov won by resignation"]

1. e4 {[%clk 0:02:40.1]} 1... c5 {[%clk 0:03:00.2]} 2. Nf3 {[%clk 0:02:36.2]}
2... Nc6 {[%clk 0:03:01.2]} 3. Bb5 {[%clk 0:02:35.9]} 3... g6 {[%clk 0:03:01.3]}
4. Bxc6 {[%clk 0:02:31.2]} 4... dxc6 {[%clk 0:03:03.2]} 5. O-O {[%clk
0:02:27.4]} 5... Bg7 {[%clk 0:03:03.9]} 6. Re1 {[%clk 0:02:28.1]} 6... Nf6
{[%clk 0:03:04.7]} 7. Nc3 {[%clk 0:02:29.4]} 7... Nd7 {[%clk 0:03:01.5]} 8. d3
{[%clk 0:02:30.3]} 8... e5 {[%clk 0:03:01.8]} 9. Be3 {[%clk 0:02:31.2]} 9... Qe7
{[%clk 0:03:00.7]} 10. Qd2 {[%clk 0:02:33.1]} 10... h6 {[%clk 0:03:01.3]} 11. a3
{[%clk 0:02:34.3]} 11... b6 {[%clk 0:02:59]} 12. b4 {[%clk 0:02:33.9]} 12...
cxb4 {[%clk 0:02:36.3]} 13. axb4 {[%clk 0:02:33.6]} 13... Qxb4 {[%clk 0:02:37]}
14. Reb1 {[%clk 0:02:33.6]} 14... Qd6 {[%clk 0:02:33.3]} 15. Bxb6 {[%clk
0:02:31.9]} 15... Nxb6 {[%clk 0:02:31.9]} 16. Rxb6 {[%clk 0:02:32.1]} 16... axb6
{[%clk 0:02:30.3]} 17. Rxa8 {[%clk 0:02:32.1]} 17... O-O {[%clk 0:02:30.7]} 18.
h3 {[%clk 0:02:23.1]} 18... Be6 {[%clk 0:02:28]} 19. Rxf8+ {[%clk 0:02:19.1]}
19... Kxf8 {[%clk 0:02:18.8]} 20. Na4 {[%clk 0:02:11.2]} 20... b5 {[%clk
0:02:17.4]} 21. Nc3 {[%clk 0:02:02.6]} 21... Qb4 {[%clk 0:02:04.8]} 22. Ne2
{[%clk 0:01:35.7]} 22... Qxd2 {[%clk 0:01:57.1]} 23. Nxd2 {[%clk 0:01:32.3]}
23... f5 {[%clk 0:01:58]} 24. Kf1 {[%clk 0:01:26]} 24... Kf7 {[%clk 0:01:45.5]}
25. Ke1 {[%clk 0:01:23.4]} 25... Bf8 {[%clk 0:01:37.7]} 26. Kd1 {[%clk
0:01:22.6]} 26... Bc5 {[%clk 0:01:36.8]} 27. f3 {[%clk 0:01:22]} 27... f4 {[%clk
0:01:36.4]} 28. c3 {[%clk 0:01:18.1]} 28... Be3 {[%clk 0:01:25.6]} 29. Nf1
{[%clk 0:01:09.9]} 29... Bb6 {[%clk 0:01:19.2]} 30. Kc2 {[%clk 0:01:08]} 30...
g5 {[%clk 0:01:17.3]} 31. Nd2 {[%clk 0:00:49.4]} 31... c5 {[%clk 0:01:16.1]} 32.
c4 {[%clk 0:00:41.8]} 32... b4 {[%clk 0:01:10]} 33. Kb3 {[%clk 0:00:29.3]} 33...
h5 {[%clk 0:01:09.4]} 34. Nf1 {[%clk 0:00:27.7]} 34... g4 {[%clk 0:01:09.4]} 35.
hxg4 {[%clk 0:00:29.6]} 35... hxg4 {[%clk 0:01:11.1]} 36. Nh2 {[%clk 0:00:30.1]}
36... gxf3 {[%clk 0:01:05.8]} 37. Nxf3 {[%clk 0:00:30.4]} 37... Kf6 {[%clk
0:01:06.3]} 38. Neg1 {[%clk 0:00:28.2]} 38... Bg4 {[%clk 0:01:04.9]} 39. Nh3
{[%clk 0:00:20.8]} 39... Bxf3 {[%clk 0:00:52.2]} 40. gxf3 {[%clk 0:00:21.2]}
40... Kg6 {[%clk 0:00:53.8]} 41. Nf2 {[%clk 0:00:20.9]} 41... Kh5 {[%clk
0:00:54.9]} 42. Ng4 {[%clk 0:00:21.5]} 42... Bc7 {[%clk 0:00:55.8]} 43. Nf6+
{[%clk 0:00:22.5]} 43... Kh4 {[%clk 0:00:56.5]} 44. Nd5 {[%clk 0:00:20.9]} 44...
Bd8 {[%clk 0:00:56.3]} 45. d4 {[%clk 0:00:20]} 45... cxd4 {[%clk 0:00:44.6]} 46.
Nxb4 {[%clk 0:00:12]} 46... Kg3 {[%clk 0:00:45.3]} 47. Nd3 {[%clk 0:00:11.8]}
47... Bc7 {[%clk 0:00:42.3]} 48. c5 {[%clk 0:00:11]} 48... Kxf3 {[%clk
0:00:43.4]} 49. Kc4 {[%clk 0:00:12.2]} 49... Kxe4 {[%clk 0:00:40.3]} 50. Nf2+
{[%clk 0:00:12.1]} 50... Kf3 {[%clk 0:00:40.2]} 51. Nd3 {[%clk 0:00:12.9]} 51...
Ke2 {[%clk 0:00:38.6]} 52. c6 {[%clk 0:00:07.9]} 52... f3 {[%clk 0:00:38.9]} 53.
Nc5 {[%clk 0:00:09.1]} 53... f2 {[%clk 0:00:36.5]} 54. Ne6 {[%clk 0:00:08.3]}
0-1

[Event "*** Titled Tuesday Blitz"]
[Site "Chess.com"]
[Date "2019.06.04"]
[Round "1"]
[White "bait_or_mate"]
[Black "platy3"]
[Result "1/2-1/2"]
[WhiteElo "2448"]
[BlackElo "2814"]
[TimeControl "180+2"]
[EndTime "13:10:18 PDT"]
[Termination "Game drawn - insufficient material"]

1. d4 {[%clk 0:03:01.4]} 1... Nf6 {[%clk 0:02:57.8]} 2. c4 {[%clk 0:03:02.2]}
2... e6 {[%clk 0:02:58.5]} 3. Nc3 {[%clk 0:03:02.1]} 3... Bb4 {[%clk 0:02:59.3]}
4. Qc2 {[%clk 0:03:03.5]} 4... d5 {[%clk 0:02:59.6]} 5. cxd5 {[%clk 0:02:56.6]}
5... Qxd5 {[%clk 0:03:01.5]} 6. Nf3 {[%clk 0:02:54]} 6... Qf5 {[%clk 0:03:02.1]}
7. Qxf5 {[%clk 0:02:33.6]} 7... exf5 {[%clk 0:03:04]} 8. Bd2 {[%clk 0:02:34.7]}
8... c6 {[%clk 0:02:59.2]} 9. e3 {[%clk 0:02:33.3]} 9... O-O {[%clk 0:02:59.6]}
10. Bd3 {[%clk 0:02:32.1]} 10... g6 {[%clk 0:02:57.9]} 11. a3 {[%clk 0:02:32.5]}
11... Bd6 {[%clk 0:02:56.5]} 12. O-O {[%clk 0:02:32.6]} 12... Nbd7 {[%clk
0:02:57.7]} 13. Rac1 {[%clk 0:02:32.7]} 13... Nb6 {[%clk 0:02:58.8]} 14. Rfd1
{[%clk 0:02:32.6]} 14... Be6 {[%clk 0:02:59.8]} 15. Be1 {[%clk 0:02:30]} 15...
Rfd8 {[%clk 0:03:00.9]} 16. Ne2 {[%clk 0:02:25.9]} 16... a5 {[%clk 0:02:59]} 17.
Nd2 {[%clk 0:02:22]} 17... a4 {[%clk 0:02:54.5]} 18. Nc4 {[%clk 0:02:22.7]}
18... Nxc4 {[%clk 0:02:36.8]} 19. Bxc4 {[%clk 0:02:24.6]} 19... Bxc4 {[%clk
0:02:37.3]} 20. Rxc4 {[%clk 0:02:26.5]} 20... Nd5 {[%clk 0:02:38.7]} 21. Rc2
{[%clk 0:02:22.7]} 21... Re8 {[%clk 0:02:35.5]} 22. Nc3 {[%clk 0:02:20.8]} 22...
Nf6 {[%clk 0:02:27.6]} 23. d5 {[%clk 0:02:14.1]} 23... Be5 {[%clk 0:02:24.6]}
24. dxc6 {[%clk 0:02:10.8]} 24... bxc6 {[%clk 0:02:26.5]} 25. Na2 {[%clk
0:02:08.6]} 25... c5 {[%clk 0:02:20.8]} 26. Bc3 {[%clk 0:02:07.4]} 26... Bxc3
{[%clk 0:02:12.8]} 27. Nxc3 {[%clk 0:02:09.3]} 27... Reb8 {[%clk 0:02:08.9]} 28.
Rd6 {[%clk 0:02:00.8]} 28... Kg7 {[%clk 0:02:09.3]} 29. Rc6 {[%clk 0:02:00.6]}
29... Rd8 {[%clk 0:01:58.5]} 30. Kf1 {[%clk 0:01:44.7]} 30... Ra5 {[%clk
0:01:55.4]} 31. Ke2 {[%clk 0:01:44.2]} 31... Ng4 {[%clk 0:01:56.7]} 32. Nd1
{[%clk 0:01:33.4]} 32... Rd5 {[%clk 0:01:45.6]} 33. Rc7 {[%clk 0:01:25.9]} 33...
Ne5 {[%clk 0:01:35.2]} 34. f3 {[%clk 0:01:16.3]} 34... h5 {[%clk 0:01:07.2]} 35.
Nf2 {[%clk 0:01:16.7]} 35... Rb5 {[%clk 0:01:03]} 36. e4 {[%clk 0:01:16.8]}
36... fxe4 {[%clk 0:00:59.9]} 37. fxe4 {[%clk 0:01:18.7]} 37... Rd4 {[%clk
0:00:55.4]} 38. R7xc5 {[%clk 0:01:19.4]} 38... Rxc5 {[%clk 0:00:54.3]} 39. Rxc5
{[%clk 0:01:21.3]} 39... Nc4 {[%clk 0:00:55.6]} 40. Rd5 {[%clk 0:01:05.2]} 40...
Rxd5 {[%clk 0:00:53.1]} 41. exd5 {[%clk 0:01:07.1]} 41... Nxb2 {[%clk
0:00:54.7]} 42. Ne4 {[%clk 0:01:02.8]} 42... Kf8 {[%clk 0:00:46.6]} 43. Nc3
{[%clk 0:00:50.5]} 43... Ke7 {[%clk 0:00:47.1]} 44. Ke3 {[%clk 0:00:50.1]} 44...
Nc4+ {[%clk 0:00:45.3]} 45. Kd4 {[%clk 0:00:51.5]} 45... Nxa3 {[%clk 0:00:47]}
46. Nxa4 {[%clk 0:00:50.9]} 46... Kd6 {[%clk 0:00:47.4]} 47. Nc3 {[%clk
0:00:51]} 47... Nc2+ {[%clk 0:00:48]} 48. Ke4 {[%clk 0:00:49.7]} 48... Nb4
{[%clk 0:00:46.8]} 49. h4 {[%clk 0:00:44.1]} 49... Na6 {[%clk 0:00:42.6]} 50.
Kd4 {[%clk 0:00:43.2]} 50... f6 {[%clk 0:00:34.5]} 51. Ne4+ {[%clk 0:00:38.7]}
51... Ke7 {[%clk 0:00:36]} 52. Kc4 {[%clk 0:00:34]} 52... Nb8 {[%clk 0:00:33.9]}
53. Nc5 {[%clk 0:00:33.7]} 53... Kd6 {[%clk 0:00:34.1]} 54. Kd4 {[%clk
0:00:34.9]} 54... Ke7 {[%clk 0:00:32.4]} 55. g3 {[%clk 0:00:32.7]} 55... Kd6
{[%clk 0:00:32.9]} 56. Ne4+ {[%clk 0:00:33.5]} 56... Ke7 {[%clk 0:00:34.2]} 57.
Kc5 {[%clk 0:00:31.4]} 57... Nd7+ {[%clk 0:00:29.6]} 58. Kc6 {[%clk 0:00:31.9]}
58... Ne5+ {[%clk 0:00:27.7]} 59. Kc7 {[%clk 0:00:33.1]} 59... g5 {[%clk
0:00:22.3]} 60. d6+ {[%clk 0:00:30.2]} 60... Ke6 {[%clk 0:00:23.1]} 61. hxg5
{[%clk 0:00:30.9]} 61... fxg5 {[%clk 0:00:24.2]} 62. Nxg5+ {[%clk 0:00:32.8]}
62... Kf5 {[%clk 0:00:24.2]} 63. Nh3 {[%clk 0:00:21.6]} 63... Kg4 {[%clk
0:00:24.4]} 64. Nf4 {[%clk 0:00:23]} 64... h4 {[%clk 0:00:25.6]} 65. gxh4 {[%clk
0:00:21.5]} 65... Kxf4 {[%clk 0:00:26.6]} 66. h5 {[%clk 0:00:21]} 66... Kg5
{[%clk 0:00:27.6]} 67. d7 {[%clk 0:00:21.1]} 67... Nxd7 {[%clk 0:00:28.9]} 68.
Kxd7 {[%clk 0:00:21.8]} 68... Kxh5 {[%clk 0:00:30.2]} 1/2-1/2

[Event "*** Titled Tuesday Blitz"]
[Site "Chess.com"]
[Date "2019.06.04"]
[Round "1"]
[White "Caterpiller35"]
[Black "DrMelekess"]
[Result "0-1"]
[WhiteElo "2395"]
[BlackElo "2749"]
[TimeControl "180+2"]
[EndTime "13:10:21 PDT"]
[Termination "DrMelekess won on time"]

1. d4 {[%clk 0:02:59.6]} 1... d5 {[%clk 0:02:57.4]} 2. Bf4 {[%clk 0:02:59.9]}
2... Nf6 {[%clk 0:02:56.6]} 3. e3 {[%clk 0:03:00.9]} 3... e6 {[%clk 0:02:57.2]}
4. Nd2 {[%clk 0:03:00.6]} 4... c5 {[%clk 0:02:58]} 5. c3 {[%clk 0:03:01.7]} 5...
Bd6 {[%clk 0:02:51.9]} 6. Bg3 {[%clk 0:03:01.8]} 6... O-O {[%clk 0:02:52.1]} 7.
Ngf3 {[%clk 0:03:02.2]} 7... Qc7 {[%clk 0:02:52.8]} 8. Bd3 {[%clk 0:02:59.2]}
8... Nbd7 {[%clk 0:02:53.2]} 9. e4 {[%clk 0:02:47.7]} 9... e5 {[%clk 0:02:47.1]}
10. dxe5 {[%clk 0:02:11.6]} 10... Nxe5 {[%clk 0:02:46.5]} 11. Nxe5 {[%clk
0:02:09.2]} 11... Bxe5 {[%clk 0:02:46.9]} 12. O-O {[%clk 0:02:10.1]} 12... Bxg3
{[%clk 0:02:43.9]} 13. hxg3 {[%clk 0:02:12]} 13... Bg4 {[%clk 0:02:40.4]} 14.
Qa4 {[%clk 0:01:54.1]} 14... Rad8 {[%clk 0:02:25.8]} 15. exd5 {[%clk 0:01:48.7]}
15... Rxd5 {[%clk 0:02:26]} 16. Ne4 {[%clk 0:01:49.9]} 16... Nd7 {[%clk
0:01:56]} 17. Bc2 {[%clk 0:01:24.8]} 17... Rh5 {[%clk 0:01:38.2]} 18. f3 {[%clk
0:01:15.3]} 18... Be6 {[%clk 0:01:24.7]} 19. g4 {[%clk 0:01:06]} 19... Rh6
{[%clk 0:01:08.9]} 20. Kf2 {[%clk 0:00:58.7]} 20... c4 {[%clk 0:00:58.8]} 21.
Qb4 {[%clk 0:00:45.3]} 21... Bd5 {[%clk 0:00:24.7]} 22. Rh1 {[%clk 0:00:41.1]}
22... Rxh1 {[%clk 0:00:09.2]} 23. Rxh1 {[%clk 0:00:41.3]} 23... h6 {[%clk
0:00:08.1]} 24. g5 {[%clk 0:00:37.7]} 24... Bxe4 {[%clk 0:00:08.1]} 25. Bxe4
{[%clk 0:00:39.6]} 25... Nc5 {[%clk 0:00:09]} 26. Qxc4 {[%clk 0:00:35.9]} 26...
b5 {[%clk 0:00:10]} 27. Qe2 {[%clk 0:00:30.9]} 27... Nxe4+ {[%clk 0:00:07.7]}
28. Qxe4 {[%clk 0:00:31.2]} 28... Qc5+ {[%clk 0:00:09.2]} 29. Qd4 {[%clk
0:00:26.9]} 29... Qxg5 {[%clk 0:00:09.6]} 30. Rh4 {[%clk 0:00:21.9]} 30... Qf5
{[%clk 0:00:06.8]} 31. Rg4 {[%clk 0:00:20]} 31... g6 {[%clk 0:00:07.6]} 32. Qe4
{[%clk 0:00:20.2]} 32... Qc5+ {[%clk 0:00:08.4]} 33. Qd4 {[%clk 0:00:21.5]}
33... Qc7 {[%clk 0:00:09.5]} 34. Qd5 {[%clk 0:00:19]} 34... Kg7 {[%clk
0:00:08.7]} 35. Qd4+ {[%clk 0:00:18.8]} 35... Kh7 {[%clk 0:00:09.2]} 36. Rf4
{[%clk 0:00:19.1]} 36... Kg8 {[%clk 0:00:08.6]} 37. Rg4 {[%clk 0:00:12.6]} 37...
Rd8 {[%clk 0:00:09.3]} 38. Qe3 {[%clk 0:00:06.2]} 38... Qd6 {[%clk 0:00:07.3]}
39. Qxh6 {[%clk 0:00:04.7]} 39... Qc5+ {[%clk 0:00:06.3]} 40. Kg3 {[%clk
0:00:04]} 40... Qe5+ {[%clk 0:00:05.4]} 41. Qf4 {[%clk 0:00:04.4]} 41... Qe1+
{[%clk 0:00:04.4]} 42. Kh2 {[%clk 0:00:05]} 42... Rd1 {[%clk 0:00:02.8]} 43.
Qb8+ {[%clk 0:00:03.8]} 43... Kg7 {[%clk 0:00:03.8]} 44. Qxa7 {[%clk 0:00:04.3]}
44... Qh1+ {[%clk 0:00:03.1]} 45. Kg3 {[%clk 0:00:05.2]} 45... Qe1+ {[%clk
0:00:04.9]} 46. Kh2 {[%clk 0:00:06.4]} 46... Qe5+ {[%clk 0:00:06.8]} 47. f4
{[%clk 0:00:06.6]} 47... Qh5+ {[%clk 0:00:06.5]} 48. Kg3 {[%clk 0:00:07.3]}
48... Rd3+ {[%clk 0:00:08]} 0-1

[Event "*** Titled Tuesday Blitz"]
[Site "Chess.com"]
[Date "2019.06.04"]
[Round "1"]
[White "mikhaillushenkov"]
[Black "MFBerna"]
[Result "1-0"]
[WhiteElo "2725"]
[BlackElo "2371"]
[TimeControl "180+2"]
[EndTime "13:10:22 PDT"]
[Termination "mikhaillushenkov won by resignation"]

1. Nf3 {[%clk 0:03:01]} 1... d5 {[%clk 0:02:59.4]} 2. d4 {[%clk 0:03:00.3]} 2...
Nf6 {[%clk 0:03:00.1]} 3. c4 {[%clk 0:03:00.2]} 3... e6 {[%clk 0:02:59]} 4. Nc3
{[%clk 0:02:58.7]} 4... Be7 {[%clk 0:02:59.9]} 5. Qc2 {[%clk 0:02:59]} 5... O-O
{[%clk 0:02:56.4]} 6. e4 {[%clk 0:02:59.8]} 6... dxe4 {[%clk 0:02:57.4]} 7. Nxe4
{[%clk 0:03:01.7]} 7... Bb4+ {[%clk 0:02:47]} 8. Nc3 {[%clk 0:02:49.3]} 8... b6
{[%clk 0:02:05.3]} 9. Bg5 {[%clk 0:02:32.8]} 9... Bb7 {[%clk 0:02:02.5]} 10.
O-O-O {[%clk 0:02:32.5]} 10... h6 {[%clk 0:01:48.5]} 11. Bh4 {[%clk 0:02:30.7]}
11... Be7 {[%clk 0:01:39.8]} 12. Ne5 {[%clk 0:02:25.8]} 12... Nfd7 {[%clk
0:01:24.5]} 13. Bg3 {[%clk 0:02:19.9]} 13... Nxe5 {[%clk 0:01:19.9]} 14. dxe5
{[%clk 0:02:13.7]} 14... Qc8 {[%clk 0:01:20.7]} 15. Bd3 {[%clk 0:02:14]} 15...
Na6 {[%clk 0:01:18.2]} 16. Ne4 {[%clk 0:02:05.9]} 16... Nb4 {[%clk 0:01:14.8]}
17. Qb3 {[%clk 0:02:06.9]} 17... a5 {[%clk 0:01:06.5]} 18. Bb1 {[%clk
0:02:02.2]} 18... a4 {[%clk 0:01:07.4]} 19. Qe3 {[%clk 0:01:59.1]} 19... a3
{[%clk 0:00:40.9]} 20. b3 {[%clk 0:01:59.8]} 20... Rd8 {[%clk 0:00:28.3]} 21. h4
{[%clk 0:01:57]} 21... Rxd1+ {[%clk 0:00:26.5]} 22. Rxd1 {[%clk 0:01:57.8]}
22... Bc6 {[%clk 0:00:17.9]} 23. f3 {[%clk 0:01:43.3]} 23... Qb7 {[%clk
0:00:18]} 24. Nc3 {[%clk 0:01:43.7]} 24... Rd8 {[%clk 0:00:16.5]} 25. Rxd8+
{[%clk 0:01:42.4]} 25... Bxd8 {[%clk 0:00:18.4]} 26. Qd2 {[%clk 0:01:27.7]}
26... Be7 {[%clk 0:00:18.9]} 27. Nb5 {[%clk 0:01:19.8]} 27... Bxf3 {[%clk
0:00:09.5]} 28. gxf3 {[%clk 0:01:12.7]} 28... Qxf3 {[%clk 0:00:11.4]} 29. Be1
{[%clk 0:01:11.1]} 29... Qg4 {[%clk 0:00:10.9]} 30. Nxc7 {[%clk 0:01:05.8]}
30... Nc6 {[%clk 0:00:07.4]} 31. Qd3 {[%clk 0:00:57.8]} 31... g6 {[%clk
0:00:04.2]} 32. Bc3 {[%clk 0:00:51.8]} 32... Qf4+ {[%clk 0:00:05.1]} 33. Kc2
{[%clk 0:00:50.2]} 33... Bxh4 {[%clk 0:00:04.8]} 34. Nb5 {[%clk 0:00:45.8]}
34... Bg5 {[%clk 0:00:06]} 35. b4 {[%clk 0:00:32.1]} 35... Qc1+ {[%clk
0:00:06.1]} 36. Kb3 {[%clk 0:00:33.4]} 36... Qg1 {[%clk 0:00:05.9]} 37. Bc2
{[%clk 0:00:30.2]} 37... Qc1 {[%clk 0:00:06.3]} 38. Nd6 {[%clk 0:00:28.9]} 38...
Kg7 {[%clk 0:00:06.7]} 39. Ne8+ {[%clk 0:00:29.3]} 39... Kf8 {[%clk 0:00:07.6]}
40. Nf6 {[%clk 0:00:31]} 40... Kg7 {[%clk 0:00:08.7]} 41. Ne4 {[%clk 0:00:31.6]}
41... Be7 {[%clk 0:00:09.1]} 42. c5 {[%clk 0:00:32.6]} 42... bxc5 {[%clk
0:00:09.7]} 43. bxc5 {[%clk 0:00:34.5]} 43... Qg1 {[%clk 0:00:08.8]} 44. Nd6
{[%clk 0:00:28.9]} 44... h5 {[%clk 0:00:09.3]} 45. Qc4 {[%clk 0:00:24.6]} 45...
h4 {[%clk 0:00:09.5]} 46. Kxa3 {[%clk 0:00:22.3]} 46... h3 {[%clk 0:00:10.2]}
47. Be4 {[%clk 0:00:21.7]} 47... h2 {[%clk 0:00:10.6]} 48. Bxc6 {[%clk
0:00:22.5]} 48... h1=Q {[%clk 0:00:10.9]} 49. Bxh1 {[%clk 0:00:23.3]} 49... Qxh1
{[%clk 0:00:12.8]} 50. Kb3 {[%clk 0:00:24.3]} 50... Qb1+ {[%clk 0:00:12.8]} 51.
Bb2 {[%clk 0:00:25.7]} 51... Qd1+ {[%clk 0:00:13.9]} 52. Kb4 {[%clk 0:00:24.4]}
52... Qe1+ {[%clk 0:00:13.3]} 53. Bc3 {[%clk 0:00:25.4]} 53... Qb1+ {[%clk
0:00:14.2]} 54. Qb3 {[%clk 0:00:26.7]} 54... Qd3 {[%clk 0:00:14.4]} 55. a4
{[%clk 0:00:27.3]} 55... Qe3 {[%clk 0:00:14.1]} 56. a5 {[%clk 0:00:27.7]} 56...
Qf4+ {[%clk 0:00:14.3]} 57. Qc4 {[%clk 0:00:28.8]} 57... Qc1 {[%clk 0:00:14.1]}
58. a6 {[%clk 0:00:29.7]} 58... Qb1+ {[%clk 0:00:14.8]} 59. Ka4 {[%clk
0:00:30.9]} 59... Qc2+ {[%clk 0:00:14.8]} 60. Kb5 {[%clk 0:00:32.2]} 60... Qb1+
{[%clk 0:00:16.2]} 61. Kc6 {[%clk 0:00:33.3]} 61... Qh1+ {[%clk 0:00:15.4]} 62.
Kd7 {[%clk 0:00:33.4]} 62... Bf8 {[%clk 0:00:11.3]} 63. c6 {[%clk 0:00:30.8]}
63... g5 {[%clk 0:00:10.5]} 64. a7 {[%clk 0:00:30.1]} 1-0